Cogmind - Beta 12 @@@ ROGUE MODE // 2023.04.09 @ 17:43:21 Player: Mr Goldstein Result: Destroyed by Y-45 Defender with Heavy Assault Rifle Performance ------------- Evolutions (1) 500 Regions Visited (2) 400 Robots Destroyed (22) 110 Value Destroyed (408) 408 Prototype IDs (0) 0 Alien Tech Used (0) 0 Bonus (-52) -52 TOTAL SCORE: 1366 Bonus ------- Friendly Fire -52 Cogmind --------- Core Integrity 0/400 Matter 13/300 Energy 100/100 System Corruption 0% Temperature Cool (0) Movement Flying (40) Location -9/Materials Parts ------- > --- POWER (1) -------- (None) > --- PROPULSION (3) --- Flight Unit > --- UTILITY (3) ------ Hacking Suite > --- WEAPON (2) ------- Mining Claw > --- INVENTORY (5) ---- Light Ion Engine Hacking Suite Rocket Launcher Peak State ------------ > --- POWER ------------ Light Ion Engine > --- PROPULSION ------- Flight Unit Flight Unit Flight Unit > --- UTILITY ---------- Signal Interpreter Hacking Suite Hacking Suite > --- WEAPON ----------- Heavy Assault Rifle Heavy Assault Rifle > --- INVENTORY -------- Flight Unit Flight Unit Hacking Suite Rocket Launcher Mining Claw [Rating: 15] Favorites ----------- Power Light Ion Engine Engine Light Ion Engine Propulsion Flight Unit Flight Unit Flight Unit Utility Hacking Suite Device Cooling System Storage Small Storage Unit Processor Signal Interpreter Hackware Hacking Suite Weapon Light Assault Rifle Energy Gun Small Laser Ballistic Gun Light Assault Rifle Slashing Weapon Mining Claw Build | -11 -10 -9 ------- Run | Jun Mat Mat Slots Evolved 2 | . . 2 Power . | . . . Propulsion 1 | . . 1 Utility 1 | . . 1 Weapon . | . . . Parts Attached 42 | 1 29 12 Power 3 | . 3 . Engine 3 | . 3 . Core . | . . . Reactor . | . . . Propulsion 15 | . 10 5 Treads . | . . . Leg . | . . . Wheel . | . . . Hover . | . . . Flight 15 | . 10 5 Utility 7 | 1 5 1 Device 1 | . 1 . Storage 1 | 1 . . Processor 3 | . 3 . Hackware 2 | . 1 1 Protection . | . . . Artifact . | . . . Weapon 17 | . 11 6 Energy Gun 1 | . 1 . Energy Cannon . | . . . Ballistic Gun 13 | . 9 4 Ballistic Cannon . | . . . Launcher . | . . . Special Weapon . | . . . Impact Weapon . | . . . Slashing Weapon 3 | . 1 2 Piercing Weapon . | . . . Special Melee Weapon . | . . . Unidentified Prototypes . | . . . Parts Lost 10 | . 3 7 Power 3 | . 2 1 Propulsion 4 | . . 4 Utility 2 | . . 2 Weapon 1 | . 1 . Highest Loss Streak 4 | . 2 4 To Critical Strikes . | . . . Average Slot Usage (%) 75 | . 75 72 Engine 11 | . 12 6 Flight 15 | . 12 23 Device 3 | . 3 . Processor 11 | . 13 7 Hackware 8 | . 6 17 Ballistic Gun 20 | . 23 8 Slashing Weapon 3 | . 1 8 Naked Turns 10 | . 10 . Heaviest Build 9 | 5 8 9 Greatest Support 12 | 3 8 12 Greatest Overweight (x) 2 | 1 2 . Average Overweight (x) . | . . . Largest Inventory Capacity 8 | 8 8 5 Average Capacity 5 | 6 5 5 Most Carried 5 | 4 5 5 Average Carried 3 | 2 3 3 Final Capacity 8 | 8 5 5 Final Carried 5 | 3 5 3 Class Distribution -------------------- 65% | Mutant 34% | Scavenger-Mutant Dominant Class ---------------- Mutant | -10/Materials Scavenger-Mutant | -9/Materials Resources | -11 -10 -9 ----------- Run | Jun Mat Mat Matter Collected 547 | 210 305 32 Remotely . | . . . Salvage Created 601 | . 559 42 Parts 58 | . 50 8 Haulers Intercepted 1 | . 1 . Recyclers Shooed . | . . . Parts Field Recycled . | . . . Retrieved Matter . | . . . Parts Self-Destructed . | . . . Prevented . | . . . Kills | -11 -10 -9 ------- Run | Jun Mat Mat Combat Hostiles Destroyed 14 | . 12 2 Melee 2 | . . 2 Guns 12 | . 12 . Classes Destroyed 6 | . 6 . Builder 1 | . 1 . Hauler 1 | . 1 . Operator 4 | . 3 1 Watcher 2 | . 2 . Swarmer 7 | . 5 2 Grunt 7 | . 7 . Best Kill Streak 3 | . 3 1 Combat Bots Only 3 | . 3 1 Max Kills in Single Turn 1 | . 1 1 Gunslinging . | . . . Exploded . | . . . Melee 1 | . . 1 Uniques/NPCs Destroyed . | . . . Combat | -11 -10 -9 -------- Run | Jun Mat Mat Damage Taken 1277 | . 600 677 Core 617 | . 205 412 Absorbed by Shields . | . . . Core Remaining (%) 59 | 100 18 . Volleys Fired 70 | . 66 4 Largest 2 | . 2 2 Hottest 60 | . 60 46 Shots Fired 139 | . 131 8 Gun 139 | . 131 8 Cannon . | . . . Launcher . | . . . Special . | . . . Kinetic 130 | . 122 8 Thermal 9 | . 9 . Explosive . | . . . Electromagnetic . | . . . Robot Hit Streak 11 | . 11 6 Robot Miss Streak 7 | . 7 2 Penetration Max . | . . . Secondary Targets . | . . . Shots Hit Robots 80 | . 72 8 Core Hits 32 | . 29 3 Critical Kills . | . . . Critical Parts Destroyed 1 | . 1 . Critical Strikes 1 | . 1 . Destroy 1 | . 1 . Melee Attacks 16 | . 1 15 Impact . | . . . Slashing 16 | . 1 15 Piercing . | . . . Sneak Attacks 1 | . 1 . Combat Hostiles . | . . . Follow-up Attacks . | . . . Damage Inflicted 1017 | . 839 178 Guns 851 | . 772 79 Cannons . | . . . Explosions . | . . . Melee 166 | . 67 99 Ramming . | . . . Kinetic 793 | . 714 79 Thermal 58 | . 58 . Explosive . | . . . Electromagnetic . | . . . Impact . | . . . Slashing 166 | . 67 99 Piercing . | . . . Highest Corruption . | . . . Average Corruption . | . . . Corruption Purged . | . . . Corruption Blocked . | . . . Overload Shots . | . . . Overflow Damage 39 | . 27 12 Projectiles . | . . . Explosions . | . . . Melee 39 | . 27 12 Knockbacks . | . . . Impact . | . . . Kinetic . | . . . Secondary . | . . . Self-Inflicted Damage . | . . . Shots . | . . . Rammed . | . . . Targets Rammed . | . . . Kicked . | . . . Crushed . | . . . Highest Temperature 32 | . 32 7 Average Temperature 8 | . 8 7 Received Heat Transfer 303 | . 180 123 Siege Activations . | . . . Robots Corrupted . | . . . Combat Hostiles . | . . . Parts Fried . | . . . Impact Corruptions . | . . . Robots Melted . | . . . Combat Hostiles . | . . . Parts Melted 2 | . 2 . Heat Transferred 125 | . 125 . Parts Sabotaged . | . . . Parts Stolen . | . . . Parts Stripped . | . . . Power Chain Reactions . | . . . Missiles Intercepted . | . . . Alert | -11 -10 -9 ------- Run | Jun Mat Mat Peak Influence 389 | . 389 348 Initial 132 | . . 132 Average 213 | . 235 223 Maximum Alert Level 1 | . 1 1 Low Security (%) 38 | 100 31 39 Level 1 61 | . 68 60 Level 2 . | . . . Level 3 . | . . . Level 4 . | . . . Level 5 . | . . . High Security . | . . . Max Security . | . . . Squads Dispatched 4 | . 4 . Investigation 1 | . 1 . Extermination . | . . . Reinforcement 3 | . 3 . Assault . | . . . Garrison . | . . . Intercept . | . . . Searches Triggered . | . . . Construction Impeded . | . . . Haulers Reinforced . | . . . Active Scanning Responses . | . . . Cargo Convoy Interrupts . | . . . Stealth | -11 -10 -9 --------- Run | Jun Mat Mat Distress Signals . | . . . Communications Jammed . | . . . Distress Signals . | . . . Times Spotted 43 | . 27 16 Peak Tracking Total 12 | . 4 12 Tactical Retreats 7 | . 4 3 Traps | -11 -10 -9 ------- Run | Jun Mat Mat Traps Triggered 1 | . 1 . Indirectly . | . . . Trap Hack Attempts . | . . . Triggered . | . . . Disarmed . | . . . Reprogrammed . | . . . Reused . | . . . Traps Extracted . | . . . Installed . | . . . Triggered . | . . . Machines | -11 -10 -9 ---------- Run | Jun Mat Mat Machines Disabled . | . . . Max in Single Turn . | . . . Machines Repaired . | . . . Machines Sabotaged . | . . . Overloaded Fab Kills . | . . . Hacking | -11 -10 -9 --------- Run | Jun Mat Mat Machines Accessed 7 | . 3 4 Terminals 6 | . 3 3 Fabricators . | . . . Repair Stations . | . . . Recycling Units . | . . . Scanalyzers 1 | . . 1 Garrison Access . | . . . Total Hacks 9 | . 3 6 Successful 9 | . 3 6 Failed . | . . . Catastrophic . | . . . Database Lockouts . | . . . Manual 7 | . 3 4 Terminals 7 | . 3 4 Fabricators . | . . . Repair Stations . | . . . Recycling Units . | . . . Scanalyzers 2 | . . 2 Garrison Access . | . . . Terminal Hacks 1 | . . 1 Level Access Points 1 | . . 1 Fabricator Hacks . | . . . Repair Station Hacks . | . . . Recycling Unit Hacks . | . . . Scanalyzer 2 | . . 2 Insert Component 1 | . . 1 Analyze 1 | . . 1 Garrison Access Hacks . | . . . Unauthorized Hacks 6 | . 3 3 Terminals 6 | . 3 3 Assimilate 1 | . . 1 Botnet 3 | . 2 1 Operators 2 | . 1 1 Fabricators . | . . . Repair Stations . | . . . Recycling Units . | . . . Scanalyzers . | . . . Garrison Access . | . . . Data Cores Recovered . | . . . Used . | . . . Hacking Detections 4 | . 2 2 Full Trace Events . | . . . Feedback Events . | . . . Feedback Blocked . | . . . Robot Schematics Acquired . | . . . Robots Built . | . . . Authchips . | . . . Time . | . . . Total Robot Build Rating . | . . . Part Schematics Acquired 1 | . . 1 Parts Built . | . . . Authchips . | . . . Time . | . . . Total Part Build Rating . | . . . Parts Repaired . | . . . Time . | . . . Parts Recycled . | . . . Recycled Matter . | . . . Retrieved Matter . | . . . Retrieved Components . | . . . Parts Scanalyzed 1 | . . 1 Part Schematics Acquired 1 | . . 1 Parts Damaged . | . . . Bothacking | -11 -10 -9 ------------ Run | Jun Mat Mat Used RIF Installer . | . . . Robots Hacked . | . . . Non-combat . | . . . Combat . | . . . Robot Hacks Applied . | . . . Relay Couplers Released . | . . . Fabnet Peak Effective % . | . . . Robots Rewired . | . . . Allies Hacked . | . . . Hacks Repelled . | . . . Allies | -11 -10 -9 -------- Run | Jun Mat Mat Total Allies 1 | . . 1 Largest Group 1 | . . 1 Highest-Rated Group 10 | . . 10 Highest-Rated Ally 10 | . . 10 Total Orders . | . . . Ally Attacks . | . . . Total Damage . | . . . Kills . | . . . Allies Corrupted . | . . . Allies Melted . | . . . Intel | -11 -10 -9 ------- Run | Jun Mat Mat Robot Analysis Total . | . . . Derelict Logs Recovered . | . . . Drone Launches . | . . . Drone Recoveries . | . . . Exploration | -11 -10 -9 ------------- Run | Jun Mat Mat Turns Passed 795 | 66 565 164 Spaces Moved 764 | 87 460 217 Core 178 | 87 82 9 Treads . | . . . Legs . | . . . Wheels . | . . . Hover . | . . . Flight 586 | . 378 208 Fastest Speed 34 | 50 37 34 Average Speed 46 | 71 47 35 Slowest Speed 150 | 100 150 50 Overloaded Moves . | . . . Propulsion Burnouts . | . . . Robots Hopped 7 | . . 7 Cave-ins Triggered . | . . . Exploration Rate (%) 28 | 3 57 26 Regions Visited 2 Branch Regions . Pre-discovered Areas . | . . . Known Exits Taken 1 | . 1 . Unknown Exits Taken 1 | 1 . . Scrap Searched . | . . . Spaces Dug 4 | . . 4 Terrain Destroyed 4 | . . 4 Melee 4 | . . 4 Projectile . | . . . AOE . | . . . Terrain Rammed . | . . . Walls Destroyed . | . . . Machines Disabled . | . . . Actions | -11 -10 -9 --------- Run | Jun Mat Mat Total 1041 | 91 691 259 Wait 96 | . 90 6 Move 750 | 86 459 205 Hop 5 | . . 5 Pick Up 34 | 4 24 6 Fast Attach 4 | . 3 1 Attach 27 | 1 19 7 Detach 5 | . 5 . Swap 11 | . 7 4 Drop 23 | . 17 6 Fire 70 | . 66 4 Melee 16 | . 1 15 Ram . | . . . Kick . | . . . Crush . | . . . Escape Stasis . | . . . Rewire . | . . . Trap . | . . . Miscellaneous . | . . . Route ------- -11/Junkyard -10/Materials (discovered 3 exits: *Mat x2 / [*Min]) -9/Materials (discovered 3 exits: Mat x3) History --------- Turn | Location | Event 4 | -11/Junkyard | Discovered new exit (range 16) 67 | -11/Junkyard | Entered Materials 205 | -10/Materials | Discovered new exit (range 8) 376 | -10/Materials | Discovered new exit (range 8) 473 | -10/Materials | Core integrity fell below 50% 563 | -10/Materials | Core integrity fell below 20% 630 | -10/Materials | Discovered new exit (range 4) 631 | -10/Materials | Identified exit to Materials 632 | -10/Materials | Entered another Materials area 632 | -9/Materials | Evolved 2 slots: Propulsion x1, Utility x1 656 | -9/Materials | Identified exit to Materials 762 | -9/Materials | Core integrity fell below 50% 771 | -9/Materials | Core integrity fell below 20% 778 | -9/Materials | Lost 4 parts (1p1n2u) 796 | -9/Materials | Destroyed by Y-45 Defender with Heavy Assault Rifle Last Messages --------------- 00739_ Dropped Hvy. Assault Rifle. 00741_ Acquired 14 matter. 00741_ S-10 Pest destroyed. 00743_ Acquired 18 matter. 00744_ Destroyed Flight Unit. 00747_ S-10 Pest destroyed. 00747_ Signal Interpreter destroyed. 00765_ Destroyed Flight Unit. 00769_ Acquired Flight Unit. 00772_ Acquired Lgt. Ion Engine. 00773_ Acquired Flight Unit. 00782_ Connecting with Scanalyzer... >>Insert(Hacking Suite) Scanning Hacking Suite... Ready to analyze. >>Scanalyze Scanning: Hacking Suite... Schematic downloaded. 00789_ S-10 Pest destroyed. 00793_ Flight Unit destroyed. Map ----- +----------------------------------------------------+ | ???????????????????????????????? | | ???????????????????????????????? | | ???????????????????????????????? | | ???????????????????????????????? | | ???????????????????????????????? | | ???????????????????????????????? | | ???????????????????????????????? | | ???????????????????????????????? | | ???????????????????????????????? | | ???????????????????????????????? | | ???????????????????????????????? | | ???????????????????????????????? | | ???????????????????????????????? | | ???????????????????????????????? | | ???????????????????????????????? | | ???????????????????????????????? | | ???????????????????????????????? | | ???????????????????????????????? | | ???????????????????????????????? | | ???????????????????????????????? | | ???????????????????????????????? | | ???????????# ##??????????????? | | ??????????? ###+###???????? | | ?????????? ???????? | | ?????????? ######## | | ?????????? Y@ "" # | | ?????????? # ""S%=# | | ?????????? # "" * # | | ??????????? ## # gsgg # | | ???????????##+????# # # | | ??????????????????# # """ # | | ????????????????# # """ # | | #???????????????# + """ # | | #???????????????# # # | | #???????????????# # """ # | | #???????????????##### # """ # | | #???????????????????# # """ # | | #???????????????????# # # | | #????################ # # | | #????# [= [% ######## | | #????# == #???? | | #????# [=* """ #???? | | #????# "T" #???? | | #????# " " #???? | | #????# ##+#???? | | #????# #??????? | | ###### #??????? | | ! ####??????? | | ######/## #?????????? | | ???? # #?????????? | +----------------------------------------------------+ Best States ------------- Heat Dissipation 47 Energy Generation 10 Energy Capacity 125 Matter Stores 300 Matter Capacity 300 Sight Range 18 Terrain Scan Density 10 Evasion (%) 63 Salvage Targeting 1 Offensive Hacking 20 Item Schematics ----------------- Hacking Suite | -9/Materials | Scanalyzed Robot Schematics ------------------ None Fabricated ------------ Nothing Alien Tech Used ----------------- None Achievements -------------- None Challenges ------------ None Game ------ Seed ForceTacticalRigger Manual? 0 Play Time 00:14:21 Cumulative 86.7 hours Start 2023.04.09 @ 17:26:04 End 2023.04.09 @ 17:43:21 Sessions 1 Manual Loads 0 Difficulty Rogue Special Mode None Game No. 108 Rogue 108 Adventurer 0 Explorer 0 Win Type - Total 2 Types 2/0/0/0/0/0/0/0/0 Lore% 53 Gallery% 53 Achievement% 45 Wizard Run 0 Options --------- ASCII 0 Keyboard 0 Movement Arrows Keybinds 0 Fullscreen 1 Font 12/Smallcaps Map View 83x54 Tactical HUD 1 Map Filters NONE Filters NONE Steam 1 RUN: 39929813-fcb4-4ea8-a4a0-bea875927ab1